Cogmind - Beta 15 @@@ ROGUE MODE // 2025.07.05 @ 08:11:25 Player: Florist Result: Destroyed by 9F-QZZ(R) with Subdweller Laser Performance ------------- Evolutions (0) 0 Regions Visited (3) 600 Robots Destroyed (39) 195 Value Destroyed (890) 890 Prototype IDs (11) 220 Alien Tech Used (0) 0 Bonus (-70) -70 TOTAL SCORE: 1835 Bonus ------- Friendly Fire -70 Cogmind --------- Core Integrity 0/250 Matter 280/300 Energy 245/250 System Corruption 0% Temperature Cool (6) Movement Rolling (140) Ox4 Location -10/Subcaves Parts ------- > --- POWER (1) -------- Ion Engine > --- PROPULSION (2) --- Wheel Wheel > --- UTILITY (2) ------ Huge Storage Unit Light Armor Plating > --- WEAPON (2) ------- Battle Rifle Hammer > --- INVENTORY (25) --- Light Ion Engine Spiked Treads Wheel Wheel Subdweller Monowheel Flightbrick Improved Heat Sink Huge Storage Unit Structural Scanner Seismic Detector Assault Rifle Light Assault Rifle Battle Rifle Battle Rifle Subdweller Machine Gun Subdweller Machine Gun Subdweller Machine Gun Subdweller Machine Gun Subdweller Machine Gun Grenade Launcher Rocket Launcher Mining Laser Peak State ------------ > --- POWER ------------ Improved Ion Engine > --- PROPULSION ------- Wheel Wheel > --- UTILITY ---------- Huge Storage Unit Light Armor Plating > --- WEAPON ----------- Battle Rifle Hammer > --- INVENTORY -------- Ion Engine Light Ion Engine Spiked Treads Wheel Wheel Subdweller Monowheel Flightbrick Improved Heat Sink Huge Storage Unit Structural Scanner Seismic Detector Assault Rifle Light Assault Rifle Battle Rifle Battle Rifle Subdweller Machine Gun Subdweller Machine Gun Subdweller Machine Gun Subdweller Machine Gun Grenade Launcher Rocket Launcher Mining Laser [Rating: 15] Favorites ----------- Power Improved Ion Engine Engine Improved Ion Engine Propulsion Wheel Treads Light Treads Wheel Wheel Utility Huge Storage Unit Device Seismic Detector Storage Huge Storage Unit Protection Light Armor Plating Weapon Battle Rifle Energy Gun Small Laser Ballistic Gun Battle Rifle Impact Weapon Hammer Build | -11 -10 -10 -10 ------- Run | Yrd Mat Min Sub Slots Evolved . | . . . . Power . | . . . . Propulsion . | . . . . Utility . | . . . . Weapon . | . . . . Parts Attached 27 | 8 6 6 7 Power 4 | 2 1 1 . Engine 4 | 2 1 1 . Core . | . . . . Reactor . | . . . . Propulsion 6 | 2 1 2 1 Treads 2 | 2 . . . Leg . | . . . . Wheel 4 | . 1 2 1 Hover . | . . . . Flight . | . . . . Utility 6 | 2 1 . 3 Device 2 | 1 . . 1 Storage 2 | 1 1 . . Processor . | . . . . Hackware . | . . . . Protection 2 | . . . 2 Artifact . | . . . . Weapon 11 | 2 3 3 3 Energy Gun 1 | 1 . . . Energy Cannon . | . . . . Ballistic Gun 9 | 1 3 2 3 Ballistic Cannon . | . . . . Launcher . | . . . . Special Weapon . | . . . . Impact Weapon 1 | . . 1 . Slashing Weapon . | . . . . Piercing Weapon . | . . . . Special Melee Weapon . | . . . . Unidentified Prototypes . | . . . . Parts Lost 6 | . 1 1 4 Power . | . . . . Propulsion 3 | . 1 1 1 Utility 2 | . . . 2 Weapon 1 | . . . 1 Highest Loss Streak 2 | . 1 1 2 To Critical Strikes . | . . . . Average Backups 18 | 2 8 17 21 Power 1 | . 1 1 1 Propulsion 3 | 1 1 1 4 Utility 4 | . 2 5 4 Weapon 9 | . 2 8 10 Tool/Special . | . . . . Unused Backups 19 | . 1 1 17 Power . | . . . . Propulsion 5 | . . 1 4 Utility 3 | . . . 3 Weapon 11 | . 1 . 10 Tool/Special . | . . . . Average Slot Usage (%) 97 | . 98 99 96 Engine 14 | . 14 14 14 Treads 4 | . 23 8 . Wheel 21 | . 3 18 24 Device 6 | . 14 14 2 Storage 14 | . 14 14 14 Protection 7 | . . . 10 Ballistic Gun 21 | . 24 27 19 Impact Weapon 6 | . . . 8 Peak Build Rating 15 | 7 8 12 15 Average Rating 12 | 5 7 10 13 On Entrance 6 | . 7 8 12 Naked Turns . | . . . . Heaviest Build 96 | 13 90 94 96 Greatest Support 40 | 40 40 26 26 Greatest Overweight (x) 9 | . 5 5 9 Average Overweight (x) 4 | . 1 4 5 Largest Inventory Capacity 25 | 8 25 25 25 Average Capacity 23 | 7 12 25 25 Most Carried 25 | 5 12 20 25 Average Carried 20 | 2 8 17 23 Final Capacity 25 | 8 25 25 25 Final Carried 25 | 5 12 20 25 Class Distribution -------------------- 77% | Mutant 22% | Scavenger-Mutant Dominant Class ---------------- Mutant | -10/Materials Scavenger-Mutant | -10/Mines Mutant | -10/Subcaves Resources | -11 -10 -10 -10 ----------- Run | Yrd Mat Min Sub Matter Collected 1207 | 257 284 221 445 Remotely . | . . . . Salvage Created 1516 | 107 704 245 460 Parts 100 | 10 43 14 33 Haulers Intercepted 2 | . 2 . . Recyclers Shooed . | . . . . Parts Field Recycled . | . . . . Retrieved Matter . | . . . . Parts Self-Destructed 12 | . . . 12 Prevented . | . . . . Kills | -11 -10 -10 -10 ------- Run | Yrd Mat Min Sub Combat Hostiles Destroyed 28 | . 14 6 8 Guns 28 | . 14 6 8 Classes Destroyed 10 | 2 6 . 2 Worker 1 | . 1 . . Tunneler 2 | 2 . . . Hauler 2 | . 2 . . Recycler 3 | 1 2 . . Operator 1 | . 1 . . Watcher 2 | . 2 . . Swarmer 9 | . 6 . 3 Grunt 14 | . 8 6 . Artisan 1 | . . . 1 Subdweller 5 | . . . 5 Best Kill Streak 4 | 2 4 2 1 Combat Bots Only 3 | . 3 2 1 Max Kills in Single Turn 1 | 1 1 1 1 Gunslinging . | . . . . Exploded . | . . . . Melee . | . . . . Uniques/NPCs Destroyed . | . . . . Combat | -11 -10 -10 -10 -------- Run | Yrd Mat Min Sub Hostile Shots Fired 129 | . 62 36 31 Missed 24 | . 10 6 8 Hits 105 | . 52 30 23 Projectile 105 | . 52 30 23 Critical Strikes 1 | . . 1 . Damage Taken 1411 | . 525 410 476 Core 257 | . 109 51 97 Absorbed by Shields . | . . . . Core Remaining (%) 100 | 100 . . . Volleys Fired 155 | 11 83 26 35 Largest 2 | 2 2 2 2 Hottest 60 | 60 60 46 50 Shots Fired 305 | 22 166 52 65 Gun 305 | 22 166 52 65 Cannon . | . . . . Launcher . | . . . . Special . | . . . . Kinetic 275 | 11 147 52 65 Thermal 30 | 11 19 . . Explosive . | . . . . Electromagnetic . | . . . . Robot Hit Streak 17 | 9 15 10 17 Robot Miss Streak 7 | 2 7 2 4 Penetration Max . | . . . . Secondary Targets 3 | . 2 1 . Max Gunslinging Chain 1 | . 1 1 . Shots Hit Robots 200 | 16 106 34 44 Core Hits 83 | 5 46 10 22 Critical Kills . | . . . . Critical Parts Destroyed 1 | . 1 . . Critical Strikes 1 | . 1 . . Destroy 1 | . 1 . . Melee Attacks 32 | . . 1 31 Impact 32 | . . 1 31 Slashing . | . . . . Piercing . | . . . . Sneak Attacks . | . . . . Combat Hostiles . | . . . . Follow-up Attacks . | . . . . Damage Inflicted 2345 | 156 1012 467 710 Guns 2327 | 156 1012 467 692 Cannons . | . . . . Explosions . | . . . . Melee 18 | . . . 18 Ramming . | . . . . Kinetic 2148 | 70 919 467 692 Thermal 179 | 86 93 . . Explosive . | . . . . Electromagnetic . | . . . . Impact 18 | . . . 18 Slashing . | . . . . Piercing . | . . . . Highest Corruption . | . . . . Average Corruption . | . . . . Corruption Purged . | . . . . Corruption Blocked . | . . . . Overload Shots . | . . . . Overflow Damage . | . . . . Projectiles . | . . . . Explosions . | . . . . Melee . | . . . . Knockbacks . | . . . . Impact . | . . . . Kinetic . | . . . . Secondary . | . . . . Self-Inflicted Damage . | . . . . Shots . | . . . . Rammed . | . . . . Targets Rammed . | . . . . Kicked . | . . . . Crushed . | . . . . Highest Temperature 60 | 60 50 8 . Average Temperature 17 | 27 19 3 . Received Heat Transfer 546 | . 207 249 90 Siege Activations . | . . . . Martial Activations . | . . . . Shielding Activations . | . . . . Robots Disrupted . | . . . . Combat Hostiles . | . . . . Robots Corrupted . | . . . . Combat Hostiles . | . . . . Parts Fried . | . . . . Impact Corruptions . | . . . . Robots Melted . | . . . . Combat Hostiles . | . . . . Parts Melted 1 | . 1 . . Heat Transferred 425 | 200 225 . . Parts Sabotaged . | . . . . Parts Stolen . | . . . . Parts Stripped . | . . . . Power Chain Reactions . | . . . . Alert | -11 -10 -10 -10 ------- Run | Yrd Mat Min Sub Maximum Alert Level 1 | . 1 . . Low Security (%) 92 | 100 78 100 . Level 1 7 | . 21 . . Level 2 . | . . . . Level 3 . | . . . . Level 4 . | . . . . Level 5 . | . . . . High Security . | . . . . Max Security . | . . . . Peak Influence 254 | 5 254 81 . Initial 39 | . . 39 . Average 52 | 1 125 13 . Influence Increases 734 | 15 474 155 90 Destroy 0b10 Robot/C 460 | . 280 120 60 Destroy 0b10 Robot/NC 55 | 15 40 . . Destroy Leader 98 | . 78 20 . Successful Hack 16 | . 16 . . Lose Combat Pursuer 105 | . 60 15 30 Influence Decreases 734 | 15 374 255 90 Entered New Map 61 | . . 61 . Time Decay 663 | 15 364 194 90 Lost Part 10 | . 10 . . Squads Dispatched 4 | . 4 . . Investigation 1 | . 1 . . Extermination . | . . . . Reinforcement 3 | . 3 . . Assault . | . . . . Garrison . | . . . . Intercept . | . . . . Searches Triggered . | . . . . Construction Impeded . | . . . . Haulers Reinforced . | . . . . Active Scanning Responses . | . . . . Cargo Convoy Interrupts . | . . . . Stealth | -11 -10 -10 -10 --------- Run | Yrd Mat Min Sub Distress Signals 5 | . 3 2 . Communications Jammed . | . . . . Distress Signals . | . . . . Times Spotted 55 | . 36 7 12 Peak Tracking Total 4 | . 4 2 2 Tactical Retreats 5 | . 3 1 1 Traps | -11 -10 -10 -10 ------- Run | Yrd Mat Min Sub Traps Triggered 2 | . 1 . 1 Indirectly . | . . . . Trap Hack Attempts . | . . . . Triggered . | . . . . Disarmed . | . . . . Reprogrammed . | . . . . Reused . | . . . . Traps Extracted . | . . . . Installed . | . . . . Triggered . | . . . . Machines | -11 -10 -10 -10 ---------- Run | Yrd Mat Min Sub Machines Disabled 1 | . . . 1 Max in Single Turn 1 | . . . 1 Machines Repaired . | . . . . Machines Dismantled . | . . . . Machines Sabotaged . | . . . . Overloaded Fab Kills . | . . . . Hacking | -11 -10 -10 -10 --------- Run | Yrd Mat Min Sub Machines Accessed 7 | . 5 . 2 Terminals 5 | . 5 . . Fabricators . | . . . . Repair Stations . | . . . . Recycling Units . | . . . . Scanalyzers . | . . . . Garrison Access . | . . . . Total Hacks 18 | . 13 . 5 Successful 12 | . 7 . 5 Failed 6 | . 6 . . Catastrophic 1 | . 1 . . Database Lockouts . | . . . . Manual 13 | . 13 . . Terminals 13 | . 13 . . Fabricators . | . . . . Repair Stations . | . . . . Recycling Units . | . . . . Scanalyzers . | . . . . Garrison Access . | . . . . Terminal Hacks 5 | . . . 5 Record 4 | . . . 4 Proto ID Catalog 1 | . . . 1 Fabricator Hacks . | . . . . Repair Station Hacks . | . . . . Recycling Unit Hacks . | . . . . Scanalyzer . | . . . . Garrison Access Hacks . | . . . . Unauthorized Hacks 7 | . 7 . . Terminals 7 | . 7 . . Botnet 4 | . 4 . . Skim 3 | . 3 . . Fabricators . | . . . . Repair Stations . | . . . . Recycling Units . | . . . . Scanalyzers . | . . . . Garrison Access . | . . . . Data Cores Recovered . | . . . . Used . | . . . . Hacking Detections 4 | . 4 . . Full Trace Events . | . . . . Feedback Events . | . . . . Feedback Blocked . | . . . . Robot Schematics Acquired . | . . . . Robots Built . | . . . . Authchips . | . . . . Time . | . . . . Total Robot Build Rating . | . . . . Part Schematics Acquired . | . . . . Parts Built . | . . . . Authchips . | . . . . Time . | . . . . Total Part Build Rating . | . . . . Parts Repaired . | . . . . Time . | . . . . Parts Recycled . | . . . . Recycled Matter . | . . . . Retrieved Matter . | . . . . Retrieved Components . | . . . . Parts Scanalyzed . | . . . . Part Schematics Acquired . | . . . . Parts Damaged . | . . . . Bothacking | -11 -10 -10 -10 ------------ Run | Yrd Mat Min Sub Used RIF Installer . | . . . . Robots Hacked . | . . . . Non-combat . | . . . . Combat . | . . . . Robot Hacks Applied . | . . . . Relay Couplers Released . | . . . . Fabnet Peak Effective % . | . . . . Robots Rewired . | . . . . Allies Hacked . | . . . . Hacks Repelled . | . . . . Allies | -11 -10 -10 -10 -------- Run | Yrd Mat Min Sub Total Allies 1 | . . 1 . Largest Group 1 | . . 1 . Highest-Rated Group 31 | . . 31 . Highest-Rated Ally 31 | . . 31 . Total Orders . | . . . . Ally Attacks . | . . . . Total Damage . | . . . . Kills . | . . . . Allies Corrupted . | . . . . Allies Melted . | . . . . Intel | -11 -10 -10 -10 ------- Run | Yrd Mat Min Sub Active Infowar (turns) 5412 | 63 1326 2262 1761 Structural 1466 | . . . 1466 Seismic 3946 | 63 1326 2262 295 Robot Analysis Total . | . . . . Derelict Logs Recovered 3 | . . 1 2 Drone Launches . | . . . . Drone Recoveries . | . . . . Exploration | -11 -10 -10 -10 ------------- Run | Yrd Mat Min Sub Turns Passed 12037 | 149 1326 2262 8300 Spaces Moved 3886 | 68 642 898 2278 Core 5 | 5 . . . Treads 507 | 63 444 . . Legs . | . . . . Wheels 3374 | . 198 898 2278 Hover . | . . . . Flight . | . . . . Fastest Speed 50 | 50 160 135 135 Average Speed 164 | 151 164 158 167 Slowest Speed 215 | 160 175 175 215 Overloaded Moves . | . . . . Propulsion Burnouts . | . . . . Robots Hopped . | . . . . Potential Cave-ins . | . . . . Cave-ins Triggered . | . . . . Exploration Rate (%) 73 | 7 97 101 88 Regions Visited 3 Branch Regions 2 Pre-discovered Areas 3 | . . . 3 Known Exits Taken . | . . . . Unknown Exits Taken 3 | 1 1 1 . Scrap Searched 14 | . . 1 13 Spaces Dug 1 | . . . 1 Terrain Destroyed 1 | . . . 1 Melee 1 | . . . 1 Projectile . | . . . . AOE . | . . . . Terrain Rammed . | . . . . Walls Destroyed . | . . . . Machines Disabled . | . . . . Actions | -11 -10 -10 -10 --------- Run | Yrd Mat Min Sub Total 9187 | 91 771 1679 6646 Wait 5027 | . 27 742 4258 Move 3883 | 67 641 897 2278 Hop . | . . . . Pick Up 29 | 5 9 5 10 Fast Attach 9 | 6 1 1 1 Attach 6 | 1 1 . 4 Detach . | . . . . Swap 35 | 1 4 6 24 Drop 11 | . 5 1 5 Fire 155 | 11 83 26 35 Melee 32 | . . 1 31 Ram . | . . . . Kick . | . . . . Crush . | . . . . Escape Stasis . | . . . . Rewire . | . . . . Trap . | . . . . Miscellaneous . | . . . . Route ------- -11/Scrapyard -10/Materials (discovered 5 exits: [*Mat x3] / [*Min] / *Sub) -10/Mines (discovered 3 exits: [*Mat x2] / *Sub) -10/Subcaves (discovered 3 exits: [*Mat x2] / [Rec]) History --------- Turn | Location | Event 7 | -11/Scrapyard | Discovered new exit (range 14) 150 | -11/Scrapyard | Entered Materials 312 | -10/Materials | Build established: Mutant 788 | -10/Materials | Discovered new exit (range 16) 883 | -10/Materials | Discovered new exit (range 7) 935 | -10/Materials | Discovered new exit (range 5) 1172 | -10/Materials | Discovered new exit (range 11) 1324 | -10/Materials | Discovered new exit (range 7) 1476 | -10/Materials | Entered Mines 1547 | -10/Mines | Core integrity fell below 50% 1596 | -10/Mines | Received a Mining Laser from a helpful Derelict 1920 | -10/Mines | Discovered new exit (range 6) 1988 | -10/Mines | Joined a pair of Derelicts in attacking an 0b10 outpost 2131 | -10/Mines | Discovered new exit (range 6) 2178 | -10/Mines | Received a Rocket Launcher from a helpful Derelict 2234 | -10/Mines | Learned Materials stockpile data 2245 | -10/Mines | Excavation squad dispatched 2245 | -10/Mines | A large section of the Mines collapsed 2633 | -10/Mines | Build established: Scavenger-Mutant 3081 | -10/Mines | Discovered new exit (range 7) 3738 | -10/Mines | Entered Subcaves 3739 | -10/Subcaves | Approached by a straggling Scientist 4163 | -10/Subcaves | A swath of the cavern ceiling suddenly collapsed 4239 | -10/Subcaves | Discovered new exit (range 10) 4961 | -10/Subcaves | Discovered new exit (range 10) 5105 | -10/Subcaves | Build established: Mutant 5248 | -10/Subcaves | Shifting Twisted Machinery released Sub. Machine Gun 5258 | -10/Subcaves | Shifting Twisted Machinery released Battle Rifle 5378 | -10/Subcaves | Learned Materials stockpile data 5420 | -10/Subcaves | Learned location of Zion (-7) 5420 | -10/Subcaves | Met a Zionite searching for "candidates" 5887 | -10/Subcaves | Visited Clippyterm 5894 | -10/Subcaves | Learned location of Extension (-6) 5894 | -10/Subcaves | Learned Factory stockpile data 6398 | -10/Subcaves | Core integrity fell below 20% 6804 | -10/Subcaves | Visited 4L-MR0's lab 6812 | -10/Subcaves | Learned location of Storage (-7) 6825 | -10/Subcaves | Found Flightbrick 10494 | -10/Subcaves | Shifting Twisted Machinery released Sub. Monowheel 10497 | -10/Subcaves | Shifting Twisted Machinery released Flamer 10716 | -10/Subcaves | Discovered new exit (range 14) 12038 | -10/Subcaves | Destroyed by 9F-QZZ(R) with Subdweller Laser Last Messages --------------- 06897_ Acquired 6 matter. 06947_ S-10 Pest destroyed. 06959_ Flight Unit fries itself beyond repair. 06972_ Acquired 22 matter. 07055_ Triggered Piercing Trap. 07055_ Spikes shoot up from the floor. 07055_ Critical hit (Impale). 08900_ Dropped Imp. Ion Engine. 09158_ Subatomizers dissect the Imp. Ion Engine, destroying it. 09435_ Acquired 5 matter. Sub. Monowheel falls loose from the Twisted Machinery. Flamer falls loose from the Twisted Machinery. 10521_ Acquired 5 matter. 10716_ EXIT=FOUND 11356_ Acquired 5 matter. 11525_ Acquired Sub. Machine Gun. 11626_ 4L-MR0 cries out in pain. 11626_ 4L-MR0 destroyed. 11629_ Acquired 22 matter. 11943_ KC-J4L(u) tweaks Twisted Machinery. Map ----- +----------------------------------------------------+ | ?????????????????????### ###????????????#%#### # | | ????????????????????### ####???????????#]"# #" | | ??????????????????##### ######????????#[*# & | | ?????????????######### #####????????#"%# #" | | ????????????######## ###?######## %"## | | ??#####?????### ############### | | ###########?## ## #### ## # | | ####"########## ### #### % | | #""#"""#"######"###### #### | | " " "#### ####### ## # # # # | | """#""""#" "" ####### ## ## ######## # | | "# ###"#"#""##"#### ## ##?????## # | | ##"""### "#"""#### ### ####???# ## | | "#""#"#""""##"#### #### ####?#### # | | #""""###"###"""## #### ## ####### | | ######"#""###"## ## ### #### | | ##########"##"# # #### ## #### ## | | ??????"###"""#" ########### #### | | ???????##""##### ############ #### | | ???????##""## # ###?????#### ## | | ???????####" ##???###### ## ### # | | ???????### # ##??###### ### ### # | | ????????############??### ### ### | | ????????################ ## ## | | ??????????????????######R ### ## | | ??????????????????### #"#@###### ### | | ??????????????????## ########## ### | | ?????????????????### ########## ## # | | ?????????????????## #??###### ### | | ?????????????????## ???### # | | ?????????????????##### ??## ### | | ?????????????????###### ??### ## ### | | ????????????????????### ?######## ### | | ??????????????????????? ??######## "" #### | | ??????????????????????? ??????#### "" #### | | ??????????????????????? ???????###""" ## ## | | ??????????????????????? ???????###"""## ## | | ??????????????????????? ???????####"" ###" | | ???????????????????????? ??????####"" ##" | | ???????????????????????? ### ???????###"" """ | | ???????????????????????? #### ???????## "" | | ???????????????????????? ###?????????####"" ## | | ?????????????????????????????????????#### ""###### | | ???????????????????????????????????????###"####### | | ???????????????????????????????????????#######??## | | ????????????????????????????????????????####????## | | ?????????????????????????????????????????????????? | | ?????????????????????????????????????????????????? | | ?????????????????????????????????????????????????? | | ?????????????????????????????????????????????????? | +----------------------------------------------------+ Best States ------------- Heat Dissipation 25 Energy Generation 12 Energy Capacity 265 Matter Stores 300 Matter Capacity 300 Sight Range 16 Terrain Scan Density 10 Armor Coverage 150 Evasion (%) 40 Recoil Reduction 2 Item Schematics ----------------- None Robot Schematics ------------------ None Fabricated ------------ Nothing Repaired ---------- Nothing Alien Tech Used ----------------- None Achievements -------------- None Challenges ------------ None Game ------ Seed CarbideFocalActivator Manual? 0 Play Time 00:29:05 Cumulative 178.1 hours Start 2025.07.05 @ 07:34:51 End 2025.07.05 @ 08:11:25 Sessions 1 Manual Loads 0 Difficulty Rogue Special Mode None Game No. 160 Rogue 160 Adventurer 0 Explorer 0 Win Type - Total 10 Types 5/0/3/2/0/0/0/0/0/0 Lore% 71 Gallery% 66 Achievement% 63 Wizard Run 0 Options --------- Layout 1 ASCII 0 Keyboard 0 Movement Numpad Keybinds 0 Fullscreen 1 Font 32/SmallcapsGlow Map View 77x35 Zoom Use 0% Tactical HUD 1 Map Filters NONE Filters NONE Steam 1 RUN: 03537350-50ae-4b71-a805-6713e3e12ae4